bitfinex/quotes_BTCUSD_20251226
["timestamp","ask_amount","ask_price","bid_price","bid_amount"]
[1766717597890,0.01121264,89185.0,89160.0,0.58483126]
[1766717597891,0.0112134,89179.0,89167.0,1.53583443]
[1766717598070,0.01792185,89177.0,89170.0,0.01121453]
[1766717598279,0.01132,89184.0,89168.0,0.02253478]
[1766717598280,0.01132,89184.0,89176.0,1.52450866]
[1766717598497,0.01132,89184.0,89177.0,1.48009565]
[1766717598702,0.02253277,89184.0,89177.0,1.46844]
[1766717598880,0.01132,89184.0,89177.0,1.46844]
[1766717599245,0.01132,89184.0,89178.0,0.01121352]
[1766717599460,0.01132,89184.0,89180.0,0.01121327]
[1766717599663,0.01132,89184.0,89177.0,1.53572177]
[1766717599831,0.01132,89184.0,89179.0,0.0112134]
[1766717600336,0.01121214,89189.0,89179.0,0.0112134]
[1766717600493,0.02924185,89190.0,89179.0,0.0112134]
[1766717600695,0.000107,89179.0,89177.0,1.46844]
[1766717601301,0.000107,89179.0,89178.0,0.05606764]
[1766717602261,0.02924185,89190.0,89178.0,0.05606764]
[1766717602262,0.01132,89190.0,89187.0,0.00541544]
[1766717602467,0.01132,89197.0,89186.0,0.01121252]
[1766717602669,0.01132,89197.0,89183.0,0.01121289]
[1766717602670,0.00055,89186.0,89183.0,0.01121289]
[1766717602837,0.00055,89186.0,89181.0,0.01121315]
[1766717603034,0.00055,89186.0,89178.0,0.02253352]
[1766717603035,0.01132,89197.0,89185.0,0.01121264]
[1766717603249,0.01132,89204.0,89185.0,0.01132]
[1766717603453,0.01121051,89202.0,89191.0,0.01121189]
[1766717603695,0.06737174,89204.0,89192.0,0.01121176]
[1766717604007,0.05605302,89202.0,89190.0,0.01121201]
[1766717604211,0.06726279,89203.0,89193.0,0.01121164]
[1766717604212,0.01121038,89203.0,89193.0,0.01121164]
[1766717604408,0.01132,89204.0,89195.0,0.01121139]
[1766717604614,0.01132,89204.0,89196.0,0.01121126]
[1766717604769,0.01120938,89211.0,89198.0,0.01121101]
[1766717604958,0.22415833,89223.0,89201.0,0.01121063]
[1766717604959,0.01132,89212.0,89201.0,0.01121063]
[1766717605156,0.02252925,89212.0,89201.0,0.01121063]
[1766717605398,0.0112095,89210.0,89200.0,0.02253076]
[1766717605600,0.01120938,89211.0,89201.0,0.01121063]
[1766717605751,0.0112095,89210.0,89200.0,0.02253076]
[1766717605962,0.01120963,89209.0,89200.0,0.01132]
[1766717606155,0.01120975,89208.0,89200.0,0.01132]
[1766717606386,0.01120975,89208.0,89195.0,0.05605646]
[1766717606387,0.01792185,89206.0,89191.0,0.01121189]
[1766717606590,0.01121076,89200.0,89192.0,0.01132]
[1766717606785,0.01121076,89200.0,89192.0,0.00035911]
[1766717606786,0.01121088,89199.0,89192.0,0.00035911]
[1766717607091,0.01121063,89201.0,89193.0,0.01132]
[1766717607295,0.01121076,89200.0,89193.0,0.01132]
[1766717607735,0.01121076,89200.0,89194.0,0.01132]
[1766717607736,0.01121088,89199.0,89194.0,0.01132]
[1766717607940,0.01121076,89200.0,89194.0,0.01132]
[1766717609742,0.01121088,89199.0,89194.0,0.01132]
[1766717610142,0.01121076,89200.0,89192.0,0.00035911]
[1766717610346,0.01121076,89200.0,89193.0,0.01132]
[1766717610554,0.01121088,89199.0,89193.0,0.01132]
[1766717610754,0.01121076,89200.0,89193.0,0.01132]
[1766717611158,0.01121088,89199.0,89193.0,0.01132]
[1766717611353,0.01121076,89200.0,89193.0,0.01132]
[1766717611560,0.06726346,89202.0,89192.0,0.00035911]
[1766717611734,0.01121076,89200.0,89193.0,0.01132]
[1766717612538,0.01121088,89199.0,89193.0,0.01132]
[1766717612752,0.01121101,89198.0,89194.0,0.01132]
[1766717612951,0.01121101,89198.0,89192.0,0.00014337]
[1766717613152,0.01121113,89197.0,89192.0,0.01146337]
[1766717613441,0.01121101,89198.0,89192.0,0.01146337]
[1766717614421,0.01121113,89197.0,89192.0,0.00014337]
[1766717615014,0.05605266,89202.0,89192.0,0.00014337]
[1766717615812,0.01121063,89201.0,89192.0,0.01135513]
[1766717616026,0.02913185,89206.0,89196.0,0.01121126]
[1766717616202,0.05604806,89210.0,89197.0,0.01121113]
[1766717616373,0.05604806,89210.0,89198.0,0.01121101]
[1766717616575,0.01120938,89211.0,89198.0,0.06726604]
[1766717616816,0.01120963,89209.0,89198.0,0.01121101]
[1766717617012,0.01120963,89209.0,89199.0,0.4097815]
[1766717617214,0.01120975,89208.0,89199.0,0.39857062]
[1766717617427,0.01120963,89209.0,89199.0,0.4097815]
[1766717617632,0.01120975,89208.0,89199.0,0.4097815]
[1766717617963,0.0224895,89210.0,89200.0,0.01121076]
[1766717618127,1.9e-07,89213.0,89203.0,0.01121038]
[1766717618323,0.01120931,89213.0,89203.0,0.01121038]
[1766717618530,0.01120925,89212.0,89201.0,0.01121063]
[1766717618697,1.9e-07,89213.0,89207.0,0.05604896]
[1766717618910,1.9e-07,89213.0,89207.0,0.05604913]
[1766717619152,1.9e-07,89213.0,89210.0,0.06725662]
[1766717619316,1.9e-07,89213.0,89211.0,0.05604641]
[1766717619663,1.9e-07,89213.0,89212.0,0.01128]
[1766717621612,0.02952884,89230.0,89212.0,0.01128]
[1766717621613,0.0004,89230.0,89227.0,0.01120736]
[1766717622166,0.0004,89230.0,89227.0,0.06724379]
[1766717622379,1e-08,89231.0,89229.0,0.05603559]
[1766717622581,0.0004,89245.0,89236.0,0.01120623]
[1766717622782,0.01792185,89243.0,89236.0,0.01120623]
[1766717622991,0.01792185,89243.0,89237.0,0.01120611]
[1766717623193,0.01792185,89243.0,89238.0,0.01120598]
[1766717623616,0.01792185,89243.0,89237.0,0.01120611]
[1766717623821,0.01792185,89243.0,89238.0,0.01120598]
[1766717624039,0.01792185,89243.0,89237.0,0.01120611]
[1766717624280,0.01792185,89243.0,89236.0,0.01120623]
[1766717624427,0.01792185,89243.0,89238.0,0.01120598]
[1766717624658,0.01792185,89243.0,89236.0,0.01120623]
[1766717624850,0.01120561,89241.0,89231.0,0.01120686]
[1766717625021,0.02912721,89243.0,89233.0,0.01120661]
[1766717625207,0.01120561,89241.0,89232.0,0.01120674]
[1766717625621,0.01120561,89241.0,89231.0,0.01120686]
[1766717625823,0.02912721,89243.0,89233.0,0.01120661]
[1766717626044,0.01120561,89241.0,89231.0,0.01120686]
[1766717626486,0.06723374,89241.0,89228.0,0.02248724]
[1766717626683,0.01120573,89240.0,89231.0,0.01120686]
[1766717626887,0.01120598,89238.0,89229.0,0.01120711]
[1766717627085,0.01120561,89241.0,89231.0,0.01120686]
[1766717627307,0.01120561,89241.0,89230.0,0.01120699]
[1766717627664,0.00054712,89231.0,89228.0,0.01128]
[1766717627926,0.22410972,89242.0,89217.0,0.06725166]
[1766717628115,0.01120762,89225.0,89214.0,0.011209]
[1766717628450,0.01120724,89228.0,89215.0,0.01128]
[1766717628625,0.01120749,89226.0,89216.0,0.01120875]
[1766717628829,0.01120749,89226.0,89215.0,0.02248887]
[1766717628830,0.01120762,89225.0,89215.0,0.01128]
[1766717629039,0.01120724,89228.0,89216.0,0.01120875]
[1766717629194,0.01120724,89228.0,89215.0,0.07853325]
[1766717629195,0.01120749,89226.0,89215.0,0.02248887]
[1766717629392,0.01120762,89225.0,89215.0,0.01128]
[1766717629616,0.01120749,89226.0,89216.0,0.01120875]
[1766717629796,0.01120736,89227.0,89216.0,0.01120875]
[1766717629997,0.01120762,89225.0,89215.0,0.02248887]
[1766717630193,0.01120749,89226.0,89216.0,0.01120875]
[1766717630637,0.05604124,89221.0,89207.0,0.01120988]
[1766717630845,0.05604124,89221.0,89207.0,0.07853866]
[1766717630846,0.01120837,89219.0,89207.0,0.07853866]
[1766717631055,0.01120824,89220.0,89209.0,0.01120963]
[1766717631253,0.01120837,89219.0,89209.0,0.01120963]
[1766717631480,0.01120812,89221.0,89210.0,0.0112095]
[1766717631806,0.01120812,89221.0,89207.0,0.01128]
[1766717631807,0.06724929,89221.0,89207.0,0.01128]
[1766717632086,0.0112085,89218.0,89207.0,0.02248988]
[1766717632328,0.0112085,89218.0,89208.0,0.01120975]
[1766717632734,0.0112085,89218.0,89207.0,0.02248988]
[1766717632934,0.0112085,89218.0,89208.0,0.01120975]
[1766717633159,0.01120862,89217.0,89206.0,0.01121]
[1766717633365,0.06725107,89218.0,89200.0,0.01121076]
[1766717633366,0.01120938,89211.0,89200.0,0.01121076]
[1766717633531,0.01120938,89211.0,89201.0,0.01121063]
[1766717633734,0.01120912,89213.0,89201.0,0.01121063]
[1766717633894,0.01120925,89212.0,89203.0,0.01121038]
[1766717634098,0.01120912,89213.0,89203.0,0.01121038]
[1766717634315,0.01120925,89212.0,89202.0,0.01121051]
[1766717634519,0.02913072,89215.0,89205.0,0.01121013]
[1766717634918,0.01128,89216.0,89206.0,0.06725981]
[1766717635120,0.01128,89216.0,89199.0,0.01128]
[1766717635121,0.01128,89216.0,89211.0,0.01120938]
[1766717635524,0.00035895,89218.0,89212.0,0.01120925]
[1766717635703,0.00035895,89218.0,89215.0,0.01120887]
[1766717636445,0.00035895,89218.0,89216.0,0.0560433]
[1766717637946,0.00035895,89218.0,89215.0,0.01120887]
[1766717638199,0.00035895,89218.0,89213.0,0.01120912]
[1766717638401,0.00035895,89218.0,89205.0,0.01121013]
[1766717638402,0.01792185,89215.0,89205.0,0.01121013]
[1766717638578,0.01792185,89215.0,89208.0,0.01120975]
[1766717638785,0.01792185,89215.0,89205.0,0.06733028]
[1766717638984,0.01792185,89215.0,89207.0,0.01120988]
[1766717639187,0.01792185,89215.0,89208.0,0.01120975]
[1766717639387,0.01792185,89215.0,89209.0,0.01120963]
[1766717639591,0.01792185,89215.0,89210.0,0.0112095]
[1766717640021,0.01792185,89215.0,89209.0,0.01120963]
[1766717640219,0.01792185,89215.0,89210.0,0.0112095]
[1766717640597,0.01792185,89215.0,89211.0,0.01120938]
[1766717640819,0.01792185,89215.0,89210.0,0.0112095]
[1766717641342,0.01792185,89215.0,89208.0,0.01120975]
[1766717641540,0.00024317,89221.0,89212.0,0.01120925]
[1766717641745,0.00035079,89221.0,89213.0,0.06725476]
[1766717641970,0.00035079,89221.0,89219.0,0.05604134]
[1766717642195,0.00035079,89221.0,89218.0,0.0112085]
[1766717642406,0.01120699,89230.0,89220.0,0.01120824]
[1766717642618,0.01120548,89242.0,89229.0,0.01120711]
[1766717642825,0.02912771,89239.0,89229.0,0.00010762]
[1766717643025,1.16959041,89238.0,89229.0,0.00010762]
[1766717643230,1.11356,89238.0,89229.0,0.00010762]
[1766717643430,1.11356,89238.0,89229.0,0.01131473]
[1766717643570,1.11356,89238.0,89229.0,0.06734988]
[1766717643775,1.11356,89238.0,89231.0,0.01120686]
[1766717643976,0.01792185,89239.0,89232.0,0.01120674]
[1766717644351,0.01792185,89239.0,89230.0,1.43890195]
[1766717644546,0.01792185,89239.0,89231.0,0.01120686]
[1766717644786,0.01792185,89239.0,89233.0,0.01120661]
[1766717645191,0.01792185,89239.0,89231.0,0.01120686]
[1766717645343,0.01792185,89239.0,89233.0,0.01120661]
[1766717645543,0.01792185,89239.0,89234.0,0.01120649]
[1766717646158,0.01792185,89245.0,89237.0,0.01120611]
[1766717646558,0.01792185,89245.0,89238.0,0.01120598]
[1766717646758,1.1985314,89244.0,89231.0,0.01120686]
[1766717646960,1.14250523,89244.0,89234.0,0.01120649]
[1766717647802,0.01120536,89243.0,89232.0,0.01120674]
[1766717648153,1.19853192,89244.0,89233.0,0.01120661]
[1766717648154,1.14250523,89244.0,89233.0,0.01120661]
[1766717648386,0.01120536,89243.0,89233.0,0.01120661]
[1766717648532,0.00039509,89234.0,89233.0,0.06723969]
[1766717648738,0.00039509,89234.0,89233.0,0.01120661]
[1766717649319,1.1313,89244.0,89237.0,0.01120611]
[1766717649888,1.1313,89244.0,89235.0,0.05603139]
[1766717650092,1.1313,89244.0,89236.0,0.01120623]
[1766717650244,1.1313,89244.0,89235.0,0.01120636]
[1766717650565,0.02912695,89245.0,89236.0,0.06723739]
[1766717650566,0.01792185,89245.0,89236.0,0.06723739]
[1766717650783,0.01120523,89244.0,89234.0,0.01120649]
[1766717650989,0.02912695,89245.0,89235.0,0.01120636]
[1766717651208,0.01792185,89245.0,89236.0,0.01120623]
[1766717651507,0.02912695,89245.0,89235.0,0.01120636]
[1766717651711,0.01792185,89245.0,89236.0,0.01120623]
[1766717651898,0.01792185,89245.0,89238.0,0.01120598]
[1766717652085,0.01792185,89245.0,89239.0,0.01120586]
[1766717652254,0.01792185,89245.0,89236.0,0.01120623]
[1766717652455,0.02912695,89245.0,89234.0,0.01120649]
[1766717652673,0.01792185,89245.0,89235.0,0.01120636]
[1766717652879,0.01792185,89245.0,89237.0,0.01120611]
[1766717653387,0.01792185,89245.0,89236.0,0.01120623]
[1766717653706,0.01792185,89245.0,89237.0,0.01120611]
[1766717653885,0.01792185,89245.0,89238.0,0.01120598]
[1766717654085,0.01792185,89245.0,89236.0,0.01120623]
[1766717654286,0.01792185,89245.0,89238.0,0.01120598]
[1766717654517,0.01792185,89245.0,89239.0,0.01120586]
[1766717654748,0.01792185,89245.0,89237.0,0.06723606]
[1766717655041,0.00024305,89242.0,89234.0,0.0560319]
[1766717655248,0.00024305,89242.0,89235.0,0.01120636]
[1766717655850,0.00024305,89242.0,89237.0,0.01120611]
[1766717656150,0.00024305,89242.0,89236.0,0.01120623]
[1766717656501,0.00024305,89242.0,89237.0,0.01120611]
[1766717656697,0.00024305,89242.0,89236.0,0.01120623]
[1766717657001,0.00024305,89242.0,89238.0,0.01120598]
[1766717657205,0.00024305,89242.0,89236.0,0.01120623]
[1766717657406,0.00024305,89242.0,89237.0,0.01120611]
[1766717658356,0.00024305,89242.0,89238.0,0.01120598]
[1766717658758,0.00024305,89242.0,89236.0,0.01120623]
[1766717658919,0.00024305,89242.0,89237.0,0.01120611]
[1766717659348,0.00024305,89242.0,89233.0,1.37166]
[1766717659548,0.00024305,89242.0,89231.0,0.01120686]
[1766717659751,0.00024305,89242.0,89232.0,1.50714674]
[1766717659967,1.1313,89244.0,89232.0,1.50134978]
[1766717660195,0.01128,89246.0,89240.0,0.01120573]
[1766717661123,0.01128,89246.0,89242.0,0.00932309]
[1766717661365,0.01128,89246.0,89239.0,0.06363974]
[1766717661763,0.01792185,89245.0,89235.0,1.49594]
[1766717661918,0.02912695,89245.0,89235.0,1.49594]
[1766717662118,0.0851528,89245.0,89235.0,1.49594]
[1766717662378,0.01120523,89244.0,89235.0,1.49594]
[1766717662594,0.01120523,89244.0,89230.0,0.40940204]
[1766717662797,0.01120548,89242.0,89230.0,1.96137643]
[1766717662996,0.01120548,89242.0,89231.0,1.49594]
[1766717663212,0.01120548,89242.0,89231.0,1.50714686]
[1766717663424,0.01792185,89245.0,89234.0,0.01120649]
[1766717663563,0.03001814,89284.0,89229.0,0.01138762]
[1766717663564,0.01792185,89275.0,89239.0,1.49054283]
[1766717663773,0.01792185,89275.0,89229.0,0.01138762]
[1766717663774,1.17955272,89264.0,89253.0,0.00700631]
[1766717663962,1.16835,89264.0,89253.0,0.00700631]
[1766717664399,1.16835,89264.0,89254.0,0.05601954]
[1766717664994,0.01128,89264.0,89254.0,0.05601954]
[1766717665273,0.02248272,89264.0,89253.0,1.50294631]
[1766717666196,0.01128,89264.0,89253.0,1.50294631]
[1766717666392,0.01120285,89263.0,89253.0,1.50294631]
[1766717666591,0.06721789,89262.0,89253.0,1.49594]
[1766717666798,0.01120397,89254.0,89247.0,0.01128]
[1766717667030,0.0112036,89257.0,89231.0,1.49594]
[1766717667031,0.05602784,89242.0,89231.0,1.49594]
[1766717667190,0.0112051,89245.0,89232.0,0.01128]
[1766717667408,1.44916185,89246.0,89233.0,0.01120661]
[1766717667628,0.01128,89250.0,89232.0,0.01128]
[1766717667629,0.01128,89250.0,89242.0,0.01120548]
[1766717667828,0.01792185,89252.0,89243.0,1.49594]
[1766717668428,0.0004,89256.0,89243.0,1.49594]
[1766717668623,0.0004,89256.0,89249.0,0.0112046]
[1766717668945,0.0004,89256.0,89253.0,0.0112041]
[1766717671147,0.01128,89260.0,89253.0,0.0112041]
[1766717671364,0.00664185,89259.0,89254.0,0.01120397]
[1766717671565,0.00664185,89259.0,89252.0,0.01120423]
[1766717671961,0.000292,89252.0,89249.0,1.49594]
[1766717672182,0.0112036,89257.0,89249.0,1.49594]
[1766717672379,0.01120347,89258.0,89247.0,0.02248485]
[1766717672760,0.0112036,89257.0,89246.0,0.01120498]
[1766717673010,0.0112036,89257.0,89180.0,0.2]
[1766717673011,0.000292,89246.0,89234.0,0.01120649]
[1766717673184,0.01120448,89250.0,89229.0,0.22424753]
[1766717673185,0.01120573,89240.0,89229.0,0.00010762]
[1766717673385,0.01792185,89245.0,89234.0,0.01120649]
[1766717673591,0.01120523,89244.0,89232.0,0.06724011]
[1766717673770,0.01120523,89244.0,89233.0,0.01120661]
[1766717673954,0.01792185,89245.0,89237.0,0.01120611]
[1766717674151,0.000292,89237.0,89235.0,0.00550934]
[1766717674349,0.01792185,89245.0,89236.0,0.00550922]
[1766717674656,0.01792185,89245.0,89237.0,0.01120611]
[1766717674862,0.01792185,89245.0,89236.0,0.00550922]
[1766717675508,0.01792185,89245.0,89238.0,0.01120598]
[1766717675707,0.01792185,89245.0,89237.0,0.01120611]
[1766717675873,0.01792185,89245.0,89235.0,0.0615408]
[1766717676074,0.01792185,89245.0,89237.0,0.01120611]
[1766717676830,0.01128,89250.0,89245.0,0.0114621]
[1766717676985,0.01128,89250.0,89244.0,0.01120523]
[1766717677410,0.01152305,89250.0,89244.0,0.01120523]
[1766717678087,0.01120372,89256.0,89246.0,0.06722937]
[1766717678088,0.01128,89256.0,89246.0,0.06722937]
[1766717678288,0.01128,89256.0,89248.0,0.01120473]
[1766717678876,0.01128,89256.0,89246.0,0.01120498]
[1766717679071,0.01128,89256.0,89248.0,0.01120473]
[1766717679278,0.01128,89256.0,89250.0,0.01120448]
[1766717679474,0.01128,89256.0,89251.0,0.01120435]
[1766717679718,0.00024301,89258.0,89251.0,0.01120435]
[1766717680118,0.00024301,89258.0,89254.0,0.01120397]
[1766717680322,0.00024301,89258.0,89252.0,0.06722537]
[1766717680518,0.00024301,89258.0,89253.0,0.0112041]
[1766717681243,0.00024301,89258.0,89254.0,0.01120397]
[1766717681593,0.00024301,89258.0,89255.0,0.01120385]
[1766717682002,0.00024301,89258.0,89254.0,0.01120397]
[1766717682412,0.00024301,89258.0,89255.0,0.01120385]
[1766717683246,0.00024301,89258.0,89255.0,0.06722276]
[1766717683582,0.00024301,89258.0,89255.0,0.01120385]
[1766717683729,0.00024301,89258.0,89254.0,0.01120397]
[1766717684384,0.001099,89254.0,89246.0,0.05602453]
[1766717684625,0.001099,89254.0,89243.0,1.37535]
[1766717684769,0.02912557,89256.0,89241.0,0.02248561]
[1766717684770,1.46394,89253.0,89241.0,0.02248561]
[1766717684977,1.51996109,89253.0,89241.0,0.01128]
[1766717685219,1.46394,89253.0,89244.0,0.05602565]
[1766717685537,1.46394,89253.0,89247.0,0.01120485]
[1766717685684,0.01792185,89256.0,89250.0,0.01120448]
[1766717685886,0.00024301,89258.0,89250.0,0.01120448]
[1766717685887,0.00024301,89258.0,89252.0,0.01120423]
[1766717686109,0.00024301,89258.0,89253.0,0.0112041]
[1766717686315,0.00024301,89258.0,89254.0,0.01120397]
[1766717686487,0.00024301,89258.0,89255.0,0.01120385]
[1766717687147,0.00024301,89258.0,89255.0,0.06722311]
[1766717687327,0.00024301,89258.0,89255.0,0.01120385]
[1766717688336,3.01e-06,89258.0,89256.0,0.05601864]
[1766717688568,3.01e-06,89258.0,89257.0,1.37535]
[1766717689605,6.3e-07,89258.0,89257.0,1.37535]
[1766717690616,6.3e-07,89258.0,89257.0,1.38663]
[1766717691424,0.12013304,89279.0,89275.0,0.05030646]
[1766717691425,0.00808748,89279.0,89275.0,0.05030646]
[1766717691741,0.00808748,89279.0,89272.0,0.01029966]
[1766717691742,0.00808748,89279.0,89276.0,0.01110425]
[1766717691902,0.00808748,89279.0,89274.0,0.01120146]
[1766717691903,0.00808748,89279.0,89275.0,0.01120134]
[1766717692103,0.00808748,89279.0,89276.0,0.01120121]
[1766717692308,0.01119996,89286.0,89275.0,1.37535]
[1766717692582,0.00010758,89286.0,89280.0,0.01120071]
[1766717692922,0.00010758,89286.0,89283.0,0.01120034]
[1766717693125,0.00010758,89286.0,89281.0,0.01120059]
[1766717693126,0.00010758,89286.0,89280.0,0.01120071]
[1766717693552,0.00010758,89286.0,89283.0,0.01120034]
[1766717693883,0.00010758,89286.0,89282.0,0.01120046]
[1766717694280,0.00010758,89286.0,89281.0,0.01120059]
[1766717694476,0.00010758,89286.0,89282.0,0.01120046]
[1766717694981,0.00010758,89286.0,89281.0,0.01120059]
[1766717695709,0.00010758,89286.0,89282.0,0.01120046]
[1766717695824,0.00010758,89286.0,89280.0,1.37535]
[1766717696029,0.00010758,89286.0,89276.0,0.01128]
[1766717696229,0.01120008,89285.0,89276.0,0.01128]
[1766717696478,0.01120008,89285.0,89273.0,1.37535]
[1766717696479,0.01120008,89285.0,89277.0,0.01128]
[1766717696634,0.01130754,89286.0,89277.0,0.01128]
[1766717696854,0.01120008,89285.0,89277.0,0.01128]
[1766717697255,0.00060744,89278.0,89277.0,0.01128]
[1766717697462,5.844e-05,89278.0,89277.0,0.01128]
[1766717698581,5.844e-05,89278.0,89275.0,0.01120134]
[1766717698783,0.01120008,89285.0,89277.0,0.01128]
[1766717698957,0.01120021,89284.0,89277.0,0.010731]
[1766717699172,0.01120021,89284.0,89278.0,0.01128]
[1766717699768,0.01120034,89283.0,89278.0,0.01128]
[1766717699987,0.01120046,89282.0,89278.0,0.01128]
[1766717700320,0.01120046,89282.0,89270.0,0.05600923]
[1766717700321,0.02912244,89281.0,89277.0,0.01128]
[1766717700526,1.47514172,89272.0,89261.0,0.0112031]
[1766717700756,0.0112031,89261.0,89247.0,0.01120485]
[1766717700896,0.01792185,89265.0,89244.0,0.05600523]
[1766717700897,1.46394,89264.0,89254.0,0.01120397]
[1766717701106,0.00961968,89272.0,89265.0,0.01120259]
[1766717701269,1.48186185,89281.0,89268.0,0.01120222]
[1766717701270,0.01128,89278.0,89268.0,0.01120222]
[1766717701477,0.01120008,89285.0,89275.0,0.01120134]
[1766717701703,0.01120008,89285.0,89274.0,0.01120146]
[1766717701907,1.48652754,89286.0,89278.0,0.01120096]
[1766717701908,1.47532758,89286.0,89278.0,0.01120096]
[1766717702296,1.47532758,89286.0,89275.0,0.01120134]
[1766717702501,1.47532758,89286.0,89276.0,0.01120121]
[1766717702739,0.00010758,89286.0,89277.0,0.01120109]
[1766717702963,5.8e-07,89286.0,89283.0,0.01120034]
[1766717703388,5.8e-07,89286.0,89282.0,0.01120046]
[1766717703560,0.000107,89282.0,89278.0,1.38655096]
[1766717703720,5.8e-07,89286.0,89279.0,0.01120084]
[1766717703924,5.8e-07,89286.0,89280.0,0.01120071]
[1766717704118,5.8e-07,89286.0,89279.0,0.01120084]
[1766717704459,0.00699991,89291.0,89281.0,0.01120059]
[1766717704662,0.01119946,89290.0,89279.0,0.01120084]
[1766717704860,0.01119946,89290.0,89280.0,0.01120071]
[1766717705021,0.01119933,89291.0,89280.0,0.01120071]
[1766717705230,1.46394,89292.0,89282.0,0.01120046]
[1766717705417,1.46394,89292.0,89284.0,0.01120021]
[1766717705974,1.46394,89292.0,89283.0,0.01120034]
[1766717706171,1.47513921,89292.0,89281.0,0.01120059]
[1766717706378,1.46394,89292.0,89283.0,0.06720197]
[1766717706588,1.46394,89292.0,89282.0,0.01120046]
[1766717706795,1.46394,89292.0,89285.0,0.01120008]
[1766717706944,1.48186185,89295.0,89285.0,0.01120008]
[1766717707152,1.47513921,89292.0,89281.0,0.01120059]
[1766717707361,0.000107,89281.0,89271.0,1.38655184]
[1766717707726,0.000107,89281.0,89276.0,0.01138758]
[1766717707980,0.01119996,89286.0,89276.0,0.01138758]
[1766717708379,0.24189989,89295.0,89260.0,0.01120322]
[1766717708380,1.47514109,89277.0,89260.0,0.01120322]
[1766717708577,1.46394,89272.0,89260.0,0.01120322]
[1766717708814,1.47514197,89270.0,89261.0,0.01128]
[1766717709025,0.01792185,89267.0,89261.0,0.0224831]
[1766717709269,0.01120146,89274.0,89263.0,0.01120285]
[1766717709469,0.01120146,89274.0,89240.0,0.91953238]
[1766717709470,0.00024055,89284.0,89274.0,0.00055]
[1766717709639,0.00024055,89284.0,89276.0,0.01120121]
[1766717709856,0.00024055,89284.0,89274.0,0.05611441]
[1766717709857,1.46394,89283.0,89274.0,0.00010762]
[1766717710265,1.46394,89283.0,89265.0,1.5993999]
[1766717710266,1.46394,89277.0,89263.0,0.01120285]
[1766717710543,1.46394,89277.0,89262.0,0.01120297]
[1766717710544,1.46394,89273.0,89268.0,0.01120222]
[1766717710757,0.01792185,89275.0,89269.0,0.01120209]
[1766717710963,0.02248084,89279.0,89266.0,0.05601193]
[1766717710964,0.0851194,89289.0,89276.0,0.06720675]
[1766717711111,0.0851194,89289.0,89273.0,1.37535]
[1766717711112,0.00830748,89285.0,89273.0,1.43135778]
[1766717711317,0.00830748,89285.0,89270.0,0.01128]
[1766717711318,1.48186185,89275.0,89268.0,0.01128]
[1766717711545,1.48186185,89275.0,89266.0,0.06729194]
[1766717711718,1.46404754,89275.0,89266.0,0.01120247]
[1766717711916,1.46404754,89275.0,89263.0,0.15730285]
[1766717711917,0.000549,89266.0,89263.0,0.15730285]
[1766717712143,0.000549,89266.0,89261.0,0.01128]
[1766717712343,0.01120159,89273.0,89261.0,0.01128]
[1766717712664,0.01120159,89273.0,89261.0,0.0224831]
[1766717712906,0.01792185,89274.0,89263.0,0.01120285]
[1766717713097,0.01792185,89274.0,89264.0,0.01120272]
[1766717713275,0.01120172,89272.0,89261.0,0.01128]
[1766717713509,0.001099,89264.0,89255.0,0.0560188]
[1766717713713,0.001099,89264.0,89257.0,0.0112036]
[1766717713888,0.01120247,89266.0,89249.0,1.37535]
[1766717714089,0.01120247,89266.0,89234.0,0.03362001]
[1766717714090,0.01120234,89267.0,89255.0,0.01120385]
[1766717714298,1.47514209,89269.0,89257.0,0.0112036]
[1766717714618,1.47514209,89269.0,89255.0,0.01120385]
[1766717714619,0.000549,89257.0,89255.0,0.01128]
[1766717714985,0.01120322,89260.0,89247.0,0.05602391]
[1766717715184,0.05601591,89261.0,89248.0,1.40691473]
[1766717715385,0.02912507,89260.0,89249.0,1.4181946]
[1766717715793,0.01120335,89259.0,89249.0,1.4069146]
[1766717715996,0.01792185,89260.0,89251.0,0.01120435]
[1766717716420,0.01792185,89260.0,89248.0,0.01120473]
[1766717716421,0.01120335,89259.0,89248.0,0.06722795]
[1766717716629,0.01120335,89259.0,89249.0,0.0112046]
[1766717716832,0.0112031,89261.0,89252.0,1.39571]
[1766717717035,0.01128,89263.0,89256.0,1.39571]
[1766717717279,0.02248285,89263.0,89256.0,1.39571]
[1766717717480,0.01128,89263.0,89256.0,1.39571]
[1766717718290,0.01128,89263.0,89256.0,1.40691372]
[1766717718490,0.01128,89272.0,89264.0,0.06721583]
[1766717718692,0.01128,89272.0,89265.0,0.01120259]
[1766717718895,0.00010754,89275.0,89271.0,0.01120184]
[1766717719095,0.01120059,89281.0,89270.0,1.39571]
[1766717719315,0.01120059,89281.0,89270.0,1.40691197]
[1766717719440,0.06720334,89282.0,89271.0,1.40691184]
[1766717719441,0.01120046,89282.0,89271.0,1.40691184]
[1766717719647,0.01128,89283.0,89273.0,1.40691159]
[1766717719847,0.01120046,89282.0,89273.0,1.39571]
[1766717720301,0.01120046,89282.0,89273.0,1.40691159]
[1766717720501,0.02248034,89283.0,89273.0,0.01120159]
[1766717720701,1.40379046,89282.0,89270.0,1.59e-06]
[1766717720902,1.40379046,89282.0,89271.0,0.01120184]
[1766717721116,1.40379046,89282.0,89270.0,0.01120197]
[1766717721311,1.37866,89280.0,89269.0,0.05601026]
[1766717721825,1.37866,89280.0,89271.0,0.01120184]
[1766717721959,1.37866,89280.0,89270.0,0.01120197]
[1766717722163,1.37866,89280.0,89271.0,0.01120184]
[1766717722370,1.37866,89280.0,89267.0,0.06729114]
[1766717722573,0.01120071,89280.0,89270.0,0.01120197]
[1766717722772,1.37866,89279.0,89270.0,0.01120197]
[1766717722978,1.37866,89279.0,89271.0,0.01120184]
[1766717723411,1.37866,89279.0,89270.0,0.01120197]
[1766717723612,1.37866,89279.0,89271.0,0.01120184]
[1766717723944,1.37866,89279.0,89272.0,0.01120172]
[1766717724156,1.37866,89279.0,89271.0,0.01120184]
[1766717724363,1.37866,89279.0,89271.0,0.01086373]
[1766717724563,1.37866,89279.0,89273.0,0.01120159]
[1766717724761,1.37866,89279.0,89274.0,0.01120146]
[1766717724952,1.37866,89279.0,89275.0,0.01120134]
[1766717725151,1.37866,89279.0,89276.0,0.0672073]
[1766717725356,1.37866,89279.0,89272.0,0.01120172]
[1766717725691,0.000549,89276.0,89272.0,0.01120172]
[1766717725826,1.37866,89279.0,89273.0,0.01120159]
[1766717726266,1.37866,89279.0,89273.0,0.06720894]
[1766717727481,1.37866,89279.0,89276.0,0.01120121]
[1766717727678,1.37866,89279.0,89275.0,0.01120134]
[1766717728087,1.37866,89279.0,89274.0,0.01120146]
[1766717728304,1.37866,89279.0,89275.0,0.01120134]
[1766717728505,1.37866,89279.0,89274.0,0.01120146]
[1766717728906,1.37866,89279.0,89275.0,0.01120134]
[1766717729108,1.37866,89279.0,89270.0,0.01128]